fUSD/lending_fUSD_20251225
["ID","MTS","AMOUNT","RATE_DAILY","PERIOD"]
[399752030,1766658647597,-500.0,0.00016973,2]
[399752031,1766658647608,-500.0,0.00016973,2]
[399752032,1766658647618,-548.10712496,0.00016973,2]
[399752033,1766658647627,-500.25597826,0.00016973,2]
[399752034,1766658647638,-216.41876063,0.00016973,2]
[399752035,1766658647648,-162.97042988,0.00016973,2]
[399752036,1766658647658,-500.54870423,0.00016973,2]
[399752037,1766658647667,-501.82675506,0.00016973,2]
[399752038,1766658647678,-500.0,0.00016973,2]
[399752039,1766658647687,-500.0,0.00016973,2]
[399752040,1766658647697,-500.0,0.00016973,2]
[399752041,1766658647707,-500.0,0.00016973,2]
[399752042,1766658647717,-609.0239433,0.00016973,2]
[399752043,1766658647727,-320.0,0.00016976,2]
[399752044,1766658647737,-150.0,0.00016977,2]
[399752045,1766658647747,-432.0,0.00016983,2]
[399752046,1766658647757,-1271.446,0.00016983,2]
[399752047,1766658647766,-912.0,0.00016983,2]
[399752048,1766658647778,-1198.0,0.00016983,2]
[399752049,1766658647788,-1610.0,0.00016983,2]
[399752050,1766658647797,-1327.0,0.00016983,2]
[399752051,1766658647807,-2430.0,0.00016983,2]
[399752052,1766658647817,-155.394469,0.00016986,2]
[399752053,1766658647827,-151.0,0.00016986,2]
[399752054,1766658647837,-105966.74,0.00016986,2]
[399752055,1766658647848,-194.50106884,0.00016986,2]
[399752056,1766658647858,-156.92142475,0.00016986,2]
[399752057,1766658647868,-184.63789102,0.00016986,2]
[399752058,1766658647878,-249.72561223,0.00016986,2]
[399752059,1766658647888,-195.90301911,0.00016986,2]
[399752060,1766658647898,-169.35594183,0.00016986,2]
[399752061,1766658647908,-216.83783771,0.00016986,2]
[399752062,1766658647918,-233.56884122,0.00016986,2]
[399752063,1766658647928,-160.18836333,0.00016986,2]
[399752064,1766658647938,-269.94910163,0.00016986,2]
[399752065,1766658647947,-176.41435156,0.00016986,2]
[399752066,1766658647957,-195.3247393,0.00016986,2]
[399752067,1766658647966,-247.55174509,0.00016986,2]
[399752068,1766658647976,-1378.95583457,0.0001699,2]
[399752069,1766658647987,-1378.95583457,0.0001699,2]
[399752070,1766658647997,-320.0,0.00016998,2]
[399752071,1766658648009,-6811.9027169,0.00016998,2]
[399752072,1766658648019,-1060.87558749,0.00016999,5]
[399752073,1766658648029,-1060.87558748,0.00016999,5]
[399752074,1766658648039,-622.08,0.00016999,2]
[399752075,1766658648049,-300.0,0.00016999,2]
[399752076,1766658648059,-666.0,0.00016999,2]
[399752077,1766658648069,-5352233.20804862,0.00017,2]
[399752078,1766658648252,-611.28044553,0.00017,2]
[399752079,1766658648273,-4370.2,0.00017,2]
[399752080,1766658648763,-438.53883254,0.00013717,2]
[399752081,1766658649205,-1.7e-07,0.00013717,2]
[399752082,1766658649217,-553.90569299,0.00013717,2]
[399752083,1766658649230,-3778078.3716243,0.00017,2]
[399752084,1766658649763,-618.307,0.00016983,2]
[399752085,1766658649774,-1359870.44397014,0.00017,2]
[399752086,1766658649811,-3481.16016373,0.00017,2]
[399752087,1766658649893,-562801.67883457,0.00017,2]
[399752088,1766658649919,-1504.4684756,0.00017,2]
[399752089,1766658650278,-992.4445257,0.00014778,2]
[399752090,1766658650288,-64.18270429,0.00015387,2]
[399752091,1766658674041,769.79160068,0.00032877,120]
[399752092,1766658682152,-500.0,0.00010513,2]
[399752093,1766658682180,-624.06881404,0.00010534,2]
[399752094,1766658702079,408.0,0.0003287,120]
[399752095,1766658712181,-112.31050451,0.00010534,2]
[399752096,1766658712207,-131.68949549,0.00010534,2]
[399752097,1766658713646,-205.75,0.00010534,2]
[399752098,1766658715351,-316.59458203,0.00010534,2]
[399752099,1766658717807,-82.34524103,0.00010534,2]
[399752100,1766658717833,-198.46682916,0.00010534,2]
[399752101,1766658719415,-205.291,0.00010534,2]
[399752102,1766658722116,-332.62148939,0.00010534,2]
[399752103,1766658722149,-736.37931855,0.00010534,2]
[399752104,1766658722181,-736.37931855,0.00010534,2]
[399752105,1766658722214,-736.37931855,0.00010534,2]
[399752106,1766658722252,-736.37931855,0.00010534,2]
[399752107,1766658722286,-736.37931855,0.00010534,2]
[399752108,1766658722318,-736.37931855,0.00010534,2]
[399752109,1766658722535,-736.37931855,0.00010534,2]
[399752110,1766658722569,-736.37931855,0.00010534,2]
[399752111,1766658722601,-736.37931855,0.00010534,2]
[399752112,1766658722634,-736.37931855,0.00010534,2]
[399752113,1766658722667,-736.37931855,0.00010534,2]
[399752114,1766658722699,-736.37931855,0.00010534,2]
[399752115,1766658722730,-427.07885885,0.00010534,2]
[399752116,1766658722885,-307.84432286,0.00010534,2]
[399752117,1766658725145,-1.45613684,0.00010534,2]
[399752118,1766658725171,-363.00701669,0.00010534,2]
[399752119,1766658726831,-373.37230186,0.00010534,2]
[399752120,1766658726857,-174.64776622,0.00010534,2]
[399752121,1766658728092,-561.73155233,0.00010534,2]
[399752122,1766658728133,-736.37931855,0.00010534,2]
[399752123,1766658728169,-736.37931855,0.00010534,2]
[399752124,1766658728203,-736.37931855,0.00010534,2]
[399752125,1766658728241,-736.37931855,0.00010534,2]
[399752126,1766658728281,-736.37931855,0.00010534,2]
[399752127,1766658728317,-736.37931855,0.00010534,2]
[399752128,1766658728437,-736.37931855,0.00010534,2]
[399752129,1766658728472,-736.37931855,0.00010534,2]
[399752130,1766658728505,-736.37931855,0.00010534,2]
[399752131,1766658728544,-736.37931855,0.00010534,2]
[399752132,1766658728579,-736.37931855,0.00010534,2]
[399752133,1766658728614,-736.37931855,0.00010534,2]
[399752134,1766658728650,-427.07885885,0.00010534,2]
[399752135,1766658734327,-309.3004597,0.00010534,2]
[399752136,1766658734361,-736.37931855,0.00010534,2]
[399752137,1766658734394,-736.37931855,0.00010534,2]
[399752138,1766658734425,-736.37931855,0.00010534,2]
[399752139,1766658734456,-736.37931855,0.00010534,2]
[399752140,1766658734488,-736.37931855,0.00010534,2]
[399752141,1766658734520,-736.37931855,0.00010534,2]
[399752142,1766658734675,-736.37931855,0.00010534,2]
[399752143,1766658734706,-736.37931855,0.00010534,2]
[399752144,1766658734738,-736.37931855,0.00010534,2]
[399752145,1766658734770,-736.37931855,0.00010534,2]
[399752146,1766658734801,-736.37931855,0.00010534,2]
[399752147,1766658734831,-736.37931855,0.00010534,2]
[399752148,1766658734863,-427.07885885,0.00010534,2]
[399752149,1766658735291,-266.95326472,0.00010534,2]
[399752150,1766658742156,-494.74064293,0.00010535,2]
[399752151,1766658744296,-209.741393,0.00010535,2]
[399752152,1766658745839,-219.45184634,0.00010535,2]
[399752153,1766658749750,-294.45313181,0.00010535,2]
[399752154,1766658753437,-437.23700111,0.00010535,2]
[399752155,1766658757556,-167.32342631,0.00010535,2]
[399752156,1766658759394,-207.4,0.00010534,2]
[399752157,1766658761764,-38.49908271,0.00010534,2]
[399752158,1766658762112,-124.47025068,0.00010535,2]
[399752159,1766658764089,-278.53637258,0.00010535,2]
[399752160,1766658766827,-191.90931832,0.00010535,2]
[399752161,1766658768264,-171.43121784,0.00010535,2]
[399752162,1766658770420,-279.82044178,0.00010535,2]
[399752163,1766658772603,-177.44729373,0.00010535,2]
[399752164,1766658775333,-224.22421377,0.00010535,2]
[399752165,1766658778010,-424.01315613,0.00010535,2]
[399752166,1766658780664,-300.0,0.00010535,2]
[399752167,1766658783918,-150.0,0.00010534,2]
[399752168,1766658783946,-137.11792948,0.00010535,2]
[399752169,1766658786723,-495.28240572,0.00010535,2]
[399752170,1766658788183,1085.67727006,0.00010438,2]
[399752171,1766658788748,-192.15567714,0.00010535,2]
[399752172,1766658790288,-241.86774254,0.00010535,2]
[399752173,1766658794043,-209.54901978,0.00010535,2]
[399752174,1766658795256,363.74708,0.00010482,2]
[399752175,1766658797637,-151.0,0.00010532,2]
[399752176,1766658797665,-174.77,0.00010535,2]
[399752177,1766658799740,-519.08783484,0.00010535,2]
[399752178,1766658802065,-180.39187004,0.00010535,2]
[399752179,1766658805611,-352.5492956,0.00010535,2]
[399752180,1766658807854,-348.16223032,0.00010535,2]
[399752181,1766658809895,-332.96193023,0.00010535,2]
[399752182,1766658814247,2000.0,0.0002989,120]
[399752183,1766658814543,2000.0,0.0002989,120]
[399752184,1766658814844,2000.0,0.0002989,120]
[399752185,1766658815510,2000.0,0.0002989,120]
[399752186,1766658815542,-187.44435304,0.00010534,2]
[399752187,1766658817521,-312.55564696,0.00010534,2]
[399752188,1766658817557,-1.3712553,0.00010534,2]
[399752189,1766658820714,-321.830218,0.00010534,2]
[399752190,1766658822778,-336.02366734,0.00010525,2]
[399752191,1766658825427,-219.3492423,0.00010525,2]
[399752192,1766658830911,-180.2933429,0.00010525,2]
[399752193,1766658834002,-532.3115186,0.00010525,2]
[399752194,1766658836797,-359.52573798,0.00010525,2]
[399752195,1766658838952,-234.6643933,0.00010525,2]
[399752196,1766658840444,-210.0,0.00010525,2]
[399752197,1766658845923,-250.0,0.00010524,2]
[399752198,1766658848038,-50.0,0.00010524,2]
[399752199,1766658848060,-428.23400689,0.00010525,2]
[399752200,1766658849586,-343.45562184,0.00010525,2]
[399752201,1766658852835,-369.95044646,0.00010525,2]
[399752202,1766658855856,2767.11,7.25e-05,2]
[399752203,1766658856050,2767.11,7.631e-05,2]
[399752204,1766658856240,2767.11,8.013e-05,2]
[399752205,1766658856436,249.25564994,8.394e-05,2]
[399752206,1766658856458,2517.85435006,8.394e-05,2]
[399752207,1766658856633,2767.11,8.776e-05,2]
[399752208,1766658856737,-411.14805633,0.00010525,2]
[399752209,1766658856821,2767.11,9.158e-05,2]
[399752210,1766658857233,1947.93564994,9.539e-05,2]
[399752211,1766658857258,819.17435006,9.539e-05,2]
[399752212,1766658857302,2767.11,9.921e-05,2]
[399752213,1766658857429,2767.11,0.00010302,2]
[399752214,1766658859911,-178.68706295,0.00010525,2]
[399752215,1766658862699,-398.40954132,0.00010525,2]
[399752216,1766658864789,-243.83467746,0.00010525,2]
[399752217,1766658868425,-510.5469431,0.00010525,2]
[399752218,1766658870422,-541.77264874,0.00010525,2]
[399752219,1766658874143,-186.94892859,0.00010524,2]
[399752220,1766658876706,-248.35426104,0.00010524,2]
[399752221,1766658880072,-64.69681037,0.00010524,2]
[399752222,1766658880099,-247.14899331,0.00010524,2]
[399752223,1766658884819,-159.41244379,0.00010524,2]
[399752224,1766658887575,-93.4385629,0.00010524,2]
[399752225,1766658887604,-77.17313945,0.00010524,2]
[399752226,1766658889738,-154.86459683,0.00010524,2]
[399752227,1766658893832,-203.00680964,0.00010524,2]
[399752228,1766658897688,-64.95545408,0.00010524,2]
[399752229,1766658897714,-109.27454592,0.00010524,2]
[399752230,1766658898818,600.0,0.0003287,120]
[399752231,1766658903165,-300.0,0.00010523,2]
[399752232,1766658903189,-90.31593289,0.00010523,2]
[399752233,1766658906264,600.01,0.0003287,120]
[399752234,1766658909478,-209.68406711,0.00010523,2]
[399752235,1766658909501,-260.20656107,0.00010523,2]
[399752236,1766658911000,-214.8935705,0.00010523,2]
[399752237,1766658914706,-263.16667018,0.00010523,2]
[399752238,1766658916728,-159.8935705,0.00010523,2]
[399752239,1766658918887,-152.7266571,0.00010523,2]
[399752240,1766658922165,-149.11297065,0.00010523,2]
[399752241,1766658922206,-29.96201949,0.00010524,2]
[399752242,1766658924757,-225.41895152,0.00010524,2]
[399752243,1766658927376,-135.34448307,0.00010524,2]
[399752244,1766658927705,-47.9729118,0.00010524,2]
[399752245,1766658928504,723.78484672,0.00010438,2]
[399752246,1766658929328,-373.13593148,0.00010524,2]
[399752247,1766658933962,-78.89115672,0.00010524,2]
[399752248,1766658933988,-118.14437558,0.00010524,2]
[399752249,1766658936557,-229.00461773,0.00010524,2]
[399752250,1766658942013,-152.85100669,0.00010524,2]
[399752251,1766658942040,-98.98453854,0.00010524,2]
[399752252,1766658945197,-195.30081263,0.00010524,2]
[399752253,1766658949951,-178.45092096,0.00010524,2]
[399752254,1766658951870,-27.26372787,0.00010524,2]
[399752255,1766658951897,-138.32452587,0.00010524,2]
[399752256,1766658957632,-215.30030193,0.00010524,2]
[399752257,1766658960746,-146.3751722,0.00010524,2]
[399752258,1766658960776,-39.91039148,0.00010524,2]
[399752259,1766658964860,-150.0,0.00010523,2]
[399752260,1766658964889,-58.48179988,0.00010524,2]
[399752261,1766658968101,-329.1022402,0.00010524,2]
[399752262,1766658972866,-72.50556844,0.00010524,2]
[399752263,1766658972892,-89.73828817,0.00010524,2]
[399752264,1766658974999,-345.90085744,0.00010524,2]
[399752265,1766658977045,-64.36085439,0.00010524,2]
[399752266,1766658977073,-141.82891046,0.00010524,2]
[399752267,1766658981649,-358.17108954,0.00010524,2]
[399752268,1766658981676,-121.7159466,0.00010524,2]
[399752269,1766658983237,-279.92612007,0.00010524,2]
[399752270,1766658987792,-98.35793333,0.00010524,2]
[399752271,1766658987819,-138.64206667,0.00010524,2]
[399752272,1766658989030,2693.326304,0.00010471,2]
[399752273,1766658989942,-178.92659946,0.00010524,2]
[399752274,1766659016303,1740.23,0.00010457,2]
[399752275,1766659052289,1500.0,0.00010245,2]
[399752276,1766659068903,482.52323114,0.00010438,2]
[399752802,1766659177092,-210.55582332,0.00010509,2]
[399752867,1766659180408,-255.76061465,0.00010509,2]
[399752961,1766659184670,466.316438,0.00010457,2]
[399753104,1766659192094,-204.96395091,0.00010509,2]
[399753152,1766659194717,-1.68065285,0.00010509,2]
[399753153,1766659194742,-376.29362313,0.00010523,2]
[399753187,1766659196675,-263.36128127,0.00010523,2]
[399753236,1766659199025,180.74421705,0.00010423,2]
[399753238,1766659199053,-195.45387146,0.00010523,2]
[399753272,1766659200940,-211.09466061,0.00010523,2]
[399753341,1766659204736,180.74421705,0.00010426,2]
[399753355,1766659205879,-153.79656353,0.00010523,2]
[399753357,1766659205903,-110.54434083,0.00010523,2]
[399753408,1766659209138,321.6821541,0.00010442,2]
[399753412,1766659209328,-39.45565917,0.00010523,2]
[399753413,1766659209352,-121.33721895,0.00010523,2]
[399753432,1766659210705,-178.66278105,0.00010523,2]
[399753434,1766659210730,-198.94679617,0.00010523,2]
[399753435,1766659210770,180.74421705,0.00010428,2]
[399753488,1766659213906,-101.05320383,0.00010523,2]
[399753489,1766659213930,-87.07445812,0.00010523,2]
[399753518,1766659215829,-307.37807078,0.00010523,2]
[399753559,1766659218380,-165.8939225,0.00010523,2]
[399753597,1766659220659,-300.0,0.00010523,2]
[399753648,1766659224165,-307.24755004,0.00010523,2]
[399753698,1766659227144,-32.40599856,0.00010523,2]
[399753699,1766659227169,-235.49404203,0.00010523,2]
[399753738,1766659229657,-64.50595797,0.00010523,2]
[399753740,1766659229679,-136.69769976,0.00010523,2]
[399753763,1766659231127,-99.30230024,0.00010523,2]
[399753764,1766659231150,-75.47336873,0.00010523,2]
[399753797,1766659233632,-174.52663127,0.00010523,2]
[399753798,1766659233658,-61.47698005,0.00010524,2]
[399753840,1766659236127,-342.84837436,0.00010524,2]
[399753867,1766659237934,-255.40768929,0.00010524,2]
[399753919,1766659241006,-152.06562339,0.00010524,2]
[399753967,1766659243969,-60.01133291,0.00010524,2]
[399753969,1766659243993,-522.78021213,0.00010525,2]
[399753994,1766659245431,-160.75809482,0.00010525,2]
[399754027,1766659247401,-202.617375,0.00010525,2]
[399754066,1766659249851,-593.96308913,0.00010525,2]
[399754096,1766659251682,175.22,8.384e-05,2]
[399754103,1766659252005,-175.93951515,0.00010525,2]
[399754128,1766659253410,-289.06394144,0.00010525,2]
[399754165,1766659255847,-230.41963182,0.00010525,2]
[399754198,1766659257800,-317.53417626,0.00010525,2]
[399754238,1766659260210,-320.78185682,0.00010525,2]
[399754260,1766659261786,-300.0,0.00010524,2]
[399754262,1766659261811,-202.72372436,0.00010525,2]
[399754285,1766659263239,-233.83834714,0.00010525,2]
[399754332,1766659266237,-293.44463635,0.00010525,2]
[399754375,1766659269269,-291.47211502,0.00010525,2]
[399754425,1766659272245,-164.77834246,0.00010525,2]
[399754463,1766659274747,-224.38656483,0.00010525,2]
[399754490,1766659276335,-226.81699666,0.00010525,2]
[399754515,1766659277731,-202.62079403,0.00010525,2]
[399754566,1766659280793,-187.28530058,0.00010525,2]
[399754612,1766659283700,-175.38518518,0.00010525,2]
[399754634,1766659285061,-203.01339086,0.00010525,2]
[399754675,1766659287607,-163.14635088,0.00010525,2]
[399754700,1766659289022,-211.09466061,0.00010525,2]
[399754702,1766659289108,1600.0,0.00010266,2]
[399754734,1766659290924,-307.14893062,0.00010525,2]
[399754755,1766659292467,-451.0,0.00010525,2]
[399754772,1766659293334,4912.03552561,0.00010324,2]
[399754773,1766659293357,1979.33847439,0.00010324,2]
[399754775,1766659293420,396.666,0.00010324,2]
[399754801,1766659294976,-192.85106938,0.00010525,2]
[399754833,1766659296915,-293.45686372,0.00010525,2]
[399754865,1766659298842,-185.56190518,0.00010525,2]
[399754926,1766659301985,-220.44174219,0.00010525,2]
[399754951,1766659303514,-198.16501108,0.00010525,2]
[399754975,1766659304910,-359.3725495,0.00010525,2]
[399755014,1766659307000,-346.0670622,0.00010525,2]
[399755021,1766659307375,-33000.0,0.00010525,2]
[399755104,1766659312064,-300.0,0.00010525,2]
[399755164,1766659315779,463.6283153,0.00032876,120]
[399755355,1766659326974,-150.0,0.00010524,2]
[399755356,1766659326996,-267.46585275,0.00010525,2]
[399755392,1766659328932,-340.30061707,0.00010525,2]
[399755455,1766659332497,-156.15921717,0.00010525,2]
[399755507,1766659335452,-253.351569,0.00010524,2]
[399755540,1766659337450,-246.648431,0.00010524,2]
[399755541,1766659337476,-61.40907705,0.00010524,2]
[399755589,1766659339829,-305.73835349,0.00010524,2]
[399755648,1766659343213,-132.85256946,0.00010524,2]
[399755649,1766659343240,-130.87181332,0.00010524,2]
[399755680,1766659345172,-210.92424394,0.00010524,2]
[399755743,1766659349137,-158.20394274,0.00010524,2]
[399755745,1766659349167,-6.21739669,0.00010524,2]
[399755747,1766659349246,273.14415037,0.00010442,2]
[399755778,1766659351079,-163.58398172,0.00010524,2]
[399755803,1766659352489,-182.57397268,0.00010524,2]
[399755866,1766659356503,-147.62464891,0.00010524,2]
[399755867,1766659356531,-259.84518016,0.00010524,2]
[399755906,1766659358903,-240.15481984,0.00010524,2]
[399755907,1766659358930,-30.94401971,0.00010524,2]
[399755925,1766659360346,-228.57726909,0.00010524,2]
[399755948,1766659361797,-191.8681025,0.00010524,2]
[399755971,1766659363236,-48.6106087,0.00010524,2]
[399755972,1766659363265,-175.97006947,0.00010524,2]
[399756024,1766659366763,-314.49605164,0.00010524,2]
[399756067,1766659369444,-9.53387889,0.00010524,2]
[399756068,1766659369472,-268.72251943,0.00010524,2]
[399756102,1766659371353,-217.6111843,0.00010524,2]
[399756133,1766659373239,-13.66629627,0.00010524,2]
[399756135,1766659373270,-152.86532469,0.00010524,2]
[399756161,1766659374889,-252.58659223,0.00010524,2]
[399756193,1766659376833,-94.54808308,0.00010524,2]
[399756194,1766659376861,-199.19494015,0.00010524,2]
[399758029,1766659490290,182.09610026,0.00010442,2]
[399758130,1766659496320,493.15981759,0.00010418,2]
[399758224,1766659502451,493.15981759,0.00010421,2]
[399758304,1766659508558,493.15981759,0.00010423,2]
[399758871,1766659550934,-1200.0,0.00010516,2]
[399758873,1766659550963,-300.0,0.00010516,2]
[399758874,1766659550993,-300.0,0.00010516,2]
[399758875,1766659551022,-150.0,0.00010516,2]
[399758877,1766659551051,-300.0,0.00010516,2]
[399758878,1766659551084,-500.0,0.00010517,2]
[399758880,1766659551117,-500.0,0.00010517,2]
[399758881,1766659551151,-500.0,0.00010517,2]
[399758883,1766659551188,-500.0,0.00010517,2]
[399758884,1766659551225,-500.0,0.00010517,2]
[399758885,1766659551257,-0.01,0.00010517,2]
[399758891,1766659551616,-499.99,0.00010517,2]
[399758893,1766659551650,-500.0,0.00010517,2]
[399758894,1766659551684,-500.0,0.00010517,2]
[399758896,1766659551717,-500.0,0.00010517,2]
[399758897,1766659551749,-500.0,0.00010517,2]
[399758899,1766659551782,-500.0,0.00010517,2]
[399758900,1766659551814,-500.0,0.00010517,2]
[399758902,1766659551846,-500.0,0.00010517,2]
[399758903,1766659551878,-500.0,0.00010517,2]
[399758905,1766659551910,-500.0,0.00010517,2]
[399758908,1766659552071,-500.0,0.00010517,2]
[399758910,1766659552104,-500.0,0.00010517,2]
[399758911,1766659552136,-500.0,0.00010517,2]
[399758913,1766659552169,-500.0,0.00010517,2]
[399758914,1766659552202,-220.72455386,0.00010517,2]
[399758915,1766659552237,-500.0,0.00010517,2]
[399758917,1766659552271,-500.0,0.00010517,2]
[399758918,1766659552303,-500.0,0.00010517,2]
[399758920,1766659552340,-500.0,0.00010517,2]
[399758921,1766659552372,-500.0,0.00010517,2]
[399758923,1766659552405,-58.56089228,0.00010517,2]
[399758928,1766659552735,-441.43910772,0.00010517,2]
[399758930,1766659552770,-500.0,0.00010517,2]
[399758931,1766659552804,-500.0,0.00010517,2]
[399758933,1766659552836,-500.0,0.00010517,2]
[399758934,1766659552868,-500.0,0.00010517,2]
[399758936,1766659552900,-500.0,0.00010517,2]
[399758937,1766659552932,-500.0,0.00010517,2]
[399758939,1766659552965,-500.0,0.00010517,2]
[399758940,1766659552996,-500.0,0.00010517,2]
[399758942,1766659553027,-500.0,0.00010517,2]
[399758946,1766659553285,-500.0,0.00010517,2]
[399758947,1766659553320,-500.0,0.00010517,2]
[399758949,1766659553354,-500.0,0.00010517,2]
[399758950,1766659553389,-500.0,0.00010517,2]
[399758952,1766659553425,-500.0,0.00010517,2]
[399758953,1766659553459,-500.0,0.00010517,2]
[399758955,1766659553494,-500.0,0.00010517,2]
[399758956,1766659553528,-500.0,0.00010517,2]
[399758958,1766659553565,-500.0,0.00010517,2]
[399758959,1766659553598,-500.0,0.00010517,2]
[399758964,1766659553893,-500.0,0.00010517,2]
[399758965,1766659553928,-500.0,0.00010517,2]
[399758967,1766659553964,-500.0,0.00010517,2]
[399758968,1766659554000,-500.0,0.00010517,2]
[399758970,1766659554035,-362.38242186,0.00010517,2]
[399758971,1766659554070,-500.0,0.00010517,2]
[399758973,1766659554103,-500.0,0.00010517,2]
[399758974,1766659554136,-500.0,0.00010517,2]
[399758975,1766659554171,-500.0,0.00010517,2]
[399758977,1766659554204,-500.0,0.00010517,2]
[399758984,1766659554640,-500.0,0.00010517,2]
[399758985,1766659554674,-500.0,0.00010517,2]
[399758987,1766659554707,-500.0,0.00010517,2]
[399758988,1766659554740,-500.0,0.00010517,2]
[399758990,1766659554773,-500.0,0.00010517,2]
[399758991,1766659554806,-500.0,0.00010517,2]
[399758993,1766659554839,-500.0,0.00010517,2]
[399758994,1766659554873,-500.0,0.00010517,2]
[399758996,1766659554908,-500.0,0.00010517,2]
[399758997,1766659554941,-500.0,0.00010517,2]
[399759001,1766659555196,-500.0,0.00010517,2]
[399759002,1766659555230,-500.0,0.00010517,2]
[399759003,1766659555262,-491.52011552,0.00010517,2]
[399759004,1766659555294,-500.0,0.00010517,2]
[399759005,1766659555326,-500.0,0.00010517,2]
[399759006,1766659555358,-500.0,0.00010517,2]
[399759007,1766659555391,-500.0,0.00010517,2]
[399759079,1766659561573,-300.0,0.00010517,2]
[399759103,1766659563759,-6603.07458775,0.00010518,2]
[399759106,1766659563955,-10000.01,0.00010518,2]
[399759109,1766659564079,-10000.01,0.00010518,2]
[399759112,1766659564228,-10000.01,0.00010518,2]
[399759115,1766659564353,-10000.01,0.00010518,2]
[399759117,1766659564479,-10000.01,0.00010518,2]
[399759120,1766659564607,-133.30674004,0.00010518,2]
[399759121,1766659564634,-9733.39651992,0.00010518,2]
[399759123,1766659564706,-1200.0,0.00010523,2]
[399759125,1766659564737,-354.59337408,0.00010526,2]
[399759126,1766659564770,-500.0,0.00010528,2]
[399759127,1766659564800,-500.0,0.00010528,2]
[399759129,1766659564831,-500.0,0.00010528,2]
[399759130,1766659564861,-207.4,0.00010528,2]
[399759132,1766659564893,-500.0,0.00010528,2]
[399759133,1766659564924,-500.0,0.00010528,2]
[399759134,1766659564955,-500.0,0.00010528,2]
[399759137,1766659565131,-500.0,0.00010528,2]
[399759142,1766659565386,-500.0,0.00010528,2]
[399759143,1766659565418,-500.0,0.00010528,2]
[399759145,1766659565449,-500.0,0.00010528,2]
[399759146,1766659565479,-500.0,0.00010528,2]
[399759147,1766659565508,-200.0,0.00010528,2]
[399759149,1766659565541,-200.0,0.00010528,2]
[399759150,1766659565570,-151.0,0.00010528,2]
[399759152,1766659565601,-151.0,0.00010528,2]
[399759153,1766659565632,-151.0,0.00010528,2]
[399759154,1766659565662,-151.0,0.00010528,2]
[399759156,1766659565693,-151.0,0.00010528,2]
[399759157,1766659565723,-151.0,0.00010528,2]
[399759159,1766659565752,-151.0,0.00010528,2]
[399759160,1766659565781,-151.0,0.00010528,2]
[399759161,1766659565811,-151.0,0.00010528,2]
[399759163,1766659565841,-151.0,0.00010528,2]
[399759164,1766659565870,-151.0,0.00010528,2]
[399759166,1766659565899,-151.0,0.00010528,2]
[399759167,1766659565928,-151.0,0.00010528,2]
[399759168,1766659565957,-123.01,0.00010528,2]
[399759178,1766659566639,-27.99,0.00010528,2]
[399759179,1766659566649,-70.01,0.00010528,2]
[399759180,1766659566663,-80.99,0.00010528,2]
[399759181,1766659566672,-70.01,0.00010528,2]
[399759183,1766659566691,-80.99,0.00010528,2]
[399759184,1766659566701,-70.01,0.00010528,2]
[399759185,1766659566719,-80.99,0.00010528,2]
[399759186,1766659566730,-70.01,0.00010528,2]
[399759227,1766659569893,-80.99,0.00010528,2]
[399759228,1766659569923,-500.0,0.00010528,2]
[399759230,1766659569953,-500.0,0.00010528,2]
[399759231,1766659569981,-151.0,0.00010528,2]
[399759232,1766659570009,-500.0,0.00010528,2]
[399759234,1766659570038,-151.0,0.00010528,2]
[399759235,1766659570067,-500.0,0.00010528,2]
[399759236,1766659570095,-151.0,0.00010528,2]
[399759238,1766659570122,-500.0,0.00010528,2]
[399759239,1766659570152,-151.0,0.00010528,2]
[399759241,1766659570180,-500.0,0.00010528,2]
[399759242,1766659570209,-151.0,0.00010528,2]
[399759243,1766659570239,-500.0,0.00010528,2]